{"text_format":"3","workbook":"xlsx","n_sheets":2,"sheets":["Overall Score","Slide Presentation Evaluation"],"not_rendered":{"defined_names":1},"read":"whole","date_system":"1900"}

{"sheet":"Overall Score","index":0,"n_rows":18,"n_cols":14,"rows_kept":18}
["AACE® International"]
["Slide Presentation Evaluation Criteria"]
["Rev 05: October 3, 2023"]
[]
[]
[{"$nulls":13},"The paper is recommended for publication in the Annual Meeting Transactions and potential presentation at the Annual Meeting."]
["Presentation Title:",{"$nulls":12},"Please revise to address the deficiencies identified in the document, and resubmit the paper."]
["Presenter(s):",{"$nulls":12},"The paper is not sufficiently developed for the Technical Board to complete scoring. Therefore the paper cannot be considered for this year’s Annual Meeting. Please revise and resubmit for next year."]
[{"$nulls":13},"The paper is not recommended for publication because of significant misalignment with AACE recommended practices or the TCM Framework."]
["Track:",null,"No:"]
[]
[]
[]
["Legal Issues",{"$f":"'Slide Presentation Evaluation'!D10","v":"Fail"}]
[]
["Format",{"$f":"'Slide Presentation Evaluation'!D22","v":"Fail"}]
[]
["Technical Content",{"$f":"'Slide Presentation Evaluation'!D28","v":"Fail"}]

{"sheet":"Slide Presentation Evaluation","index":1,"n_rows":28,"n_cols":5,"rows_kept":28}
[{"$f":"'Overall Score'!B7","v":0}]
[]
["Conference & Expo Technical Paper Guidelines Reference","Legal Issues","Score",null,"Comment"]
[3.2,"Ownership of Figures","TBD",{"$f":"IF(C4=\"Pass\",0,1)","v":1}]
[3.4,"Confidentiality Issues","TBD",1]
[3.5,"Intellectual Property","TBD",{"$f":"IF(C6=\"Pass\",0,1)","v":1}]
[3.6,"Anti-Competitiveness Issues","TBD",1]
[3.7,"Commercialism","TBD",1]
[null,"Total Areas of Concern",null,{"$f":"SUM(D4:D8)","v":5}]
[null,"Pass/Fail",null,{"$f":"IF(D9>0,\"Fail\",\"Pass\")","v":"Fail"}]
[]
["Conference & Expo Technical Paper Guidelines Reference","Format","Score",null,"Comment"]
[null,"AACE Template","TBD",{"$f":"IF(C13=\"Pass\",0,1)","v":1}]
[null,"Readability of Text (Font/Color)","TBD",1]
[null,"Legibility of Figures","TBD",1]
[null,"Grammar","TBD",1]
[null,"Overuse of Automation/Effects","TBD",1]
[null,"For Pre-Recording Only: Audio Quality","TBD",{"$f":"IF(C18=\"Pass\",0,1)","v":1}]
[null,"For Pre-Recording Only: Duration (Approx 1 hr)","TBD",1]
[null,"For Pre-Recording Only: Slides Automatically Advance","TBD",1]
[null,"Total Areas of Concern",null,{"$f":"SUM(D13:D20)","v":8}]
[null,"Pass/Fail",null,{"$f":"IF(D21>0,\"Fail\",\"Pass\")","v":"Fail"}]
[]
["Conference & Expo Technical Paper Guidelines Reference","Technical Content","Score",null,"Comment"]
[null,"Correlation to Paper Content","TBD",{"$f":"IF(C25=\"Pass\",0,1)","v":1}]
[null,"Technical Evaluation","TBD",1]
[null,"Total Areas of Concern",null,{"$f":"SUM(D25:D26)","v":2}]
[null,"Pass/Fail",null,{"$f":"IF(D27>0,\"Fail\",\"Pass\")","v":"Fail"}]